bitfinex/quotes_BTCUSD_20220304
["timestamp","ask_amount","ask_price","bid_price","bid_amount"]
[1646414190896,0.19977931,40982.0,40980.0,0.367419]
[1646414191096,0.13871531,40982.0,40980.0,0.367419]
[1646414191297,0.13871531,40982.0,40972.0,0.5]
[1646414191497,0.0491,40981.0,40972.0,0.5]
[1646414191697,0.30730951,40981.0,40972.0,0.5]
[1646414191895,0.0491,40981.0,40972.0,0.5]
[1646414192096,0.21462907,40977.0,40972.0,0.5]
[1646414192300,0.0491,40976.0,40972.0,0.5]
[1646414192499,0.11016575,40976.0,40967.0,0.8]
[1646414192698,0.11016575,40976.0,40967.0,0.5]
[1646414192699,0.27415369,40976.0,40967.0,0.5]
[1646414192932,0.132445,40973.0,40967.0,0.5]
[1646414193133,0.06117607,40972.0,40960.0,0.3]
[1646414193337,0.06117607,40972.0,40959.0,0.03712336]
[1646414193338,0.0491,40972.0,40959.0,0.03712336]
[1646414193531,0.12215035,40969.0,40963.0,0.367419]
[1646414193731,0.29605057,40968.0,40963.0,0.367419]
[1646414194033,0.0491,40968.0,40963.0,0.367419]
[1646414195032,0.3389442,40968.0,40963.0,0.367419]
[1646414195433,0.3389442,40968.0,40960.0,0.05]
[1646414195832,0.3389442,40968.0,40961.0,0.367419]
[1646414195833,0.06108,40965.0,40961.0,0.367419]
[1646414196034,0.3389442,40968.0,40947.0,0.03608551]
[1646414196035,0.181545,40964.0,40947.0,0.03608551]
[1646414196232,0.16415358,40963.0,40950.0,0.3]
[1646414196431,0.35238378,40960.0,40951.0,0.32188371]
[1646414196681,0.16477375,40958.0,40946.0,0.3]
[1646414196879,0.16477375,40958.0,40940.0,0.4629]
[1646414196880,0.01526981,40956.0,40940.0,0.4629]
[1646414197080,0.12222976,40954.0,40942.0,0.0002008]
[1646414197278,0.0656718,40953.0,40942.0,0.0002008]
[1646414197679,0.31762883,40953.0,40944.0,0.24351562]
[1646414197881,0.0145987,40952.0,40944.0,0.24351562]
[1646414198081,0.0132793,40950.0,40944.0,0.24351562]
[1646414198280,0.01513313,40949.0,40945.0,0.367419]
[1646414198480,0.0175019,40948.0,40944.0,0.24351562]
[1646414198680,0.0175019,40948.0,40945.0,0.367419]
[1646414198881,0.0175019,40948.0,40944.0,0.24351562]
[1646414199081,0.0175019,40948.0,40945.0,0.367419]
[1646414199281,0.01482368,40947.0,40945.0,0.367419]
[1646414199580,0.01482368,40947.0,40944.0,0.24351562]
[1646414199581,0.01482368,40947.0,40946.0,0.367419]
[1646414199987,0.01482368,40947.0,40946.0,0.365419]
[1646414202428,0.0491,40954.0,40946.0,0.665419]
[1646414202636,0.01399496,40959.0,40946.0,0.665419]
[1646414202832,0.01739696,40958.0,40947.0,0.21970475]
[1646414203027,0.232408,40960.0,40951.0,0.26679751]
[1646414203228,0.232408,40960.0,40952.0,0.3]
[1646414203527,0.232408,40960.0,40951.0,0.26679751]
[1646414203528,0.01451874,40958.0,40951.0,0.26679751]
[1646414203727,0.01451874,40958.0,40952.0,0.367299]
[1646414203930,0.061086,40959.0,40957.0,0.13377314]
[1646414204197,0.05923511,40967.0,40957.0,0.13377314]
[1646414204198,0.002,40964.0,40958.0,0.97012435]
[1646414204399,0.00280283,40964.0,40958.0,0.97012435]
[1646414204799,0.00080283,40964.0,40958.0,0.97012435]
[1646414205201,0.06108,40964.0,40958.0,0.417299]
[1646414205398,0.13698733,40964.0,40958.0,0.417299]
[1646414205598,0.12216112,40964.0,40959.0,0.35]
[1646414205899,0.12216112,40964.0,40960.0,0.367299]
[1646414206599,0.13779409,40964.0,40960.0,0.367299]
[1646414206800,0.01789449,40962.0,40960.0,0.367299]
[1646414207000,0.01383481,40961.0,40960.0,0.367299]
[1646414207200,0.12216112,40964.0,40960.0,0.367299]
[1646414207601,0.12416112,40964.0,40960.0,0.367299]
[1646414208430,0.12416112,40964.0,40955.0,0.302]
[1646414208431,0.12416112,40964.0,40961.0,0.367299]
[1646414208631,0.06308,40964.0,40961.0,0.367299]
[1646414208833,0.21483123,40963.0,40955.0,0.35]
[1646414209030,0.21483123,40963.0,40956.0,0.367299]
[1646414209231,0.06108,40964.0,40961.0,0.367299]
[1646414209433,0.06108,40964.0,40961.0,0.65162359]
[1646414209831,0.06108,40964.0,40963.0,0.367299]
[1646414211031,0.06108,40964.0,40956.0,0.367299]
[1646414211231,0.06108,40964.0,40956.0,0.417299]
[1646414211435,0.25075087,40961.0,40956.0,0.417299]
[1646414211686,0.06108,40964.0,40956.0,0.417299]
[1646414212085,0.122166,40964.0,40957.0,0.367299]
[1646414212288,0.122166,40964.0,40956.0,0.367299]
[1646414212889,0.061086,40960.0,40956.0,0.367299]
[1646414213190,0.38736515,40960.0,40956.0,0.367299]
[1646414213587,0.38736515,40960.0,40955.0,0.05]
[1646414213791,0.38736515,40960.0,40953.0,0.5]
[1646414213991,0.38736515,40960.0,40954.0,0.367299]
[1646414214188,0.38736515,40960.0,40953.0,0.5]
[1646414214389,0.17432809,40959.0,40953.0,0.5]
[1646414214590,0.38736515,40960.0,40953.0,0.5]
[1646414215428,0.38736515,40960.0,40954.0,0.367299]
[1646414216229,0.38736515,40960.0,40956.0,0.367299]
[1646414216428,0.38736515,40960.0,40952.0,0.367299]
[1646414217630,0.01393329,40958.0,40952.0,0.367299]
[1646414217831,0.01193329,40958.0,40953.0,0.05357506]
[1646414218031,0.01193329,40958.0,40954.0,0.667299]
[1646414218633,0.01193329,40958.0,40954.0,0.767299]
[1646414218833,0.01193329,40958.0,40957.0,0.3179583]
[1646414219086,0.01193329,40958.0,40957.0,1.0352573]
[1646414219489,0.00080282,40964.0,40959.0,0.367299]
[1646414219687,0.01060768,40968.0,40961.0,0.367299]
[1646414219889,0.02671504,40969.0,40963.0,0.367299]
[1646414220088,0.01536315,40968.0,40965.0,0.367299]
[1646414220287,0.01596282,40967.0,40965.0,0.367299]
[1646414220488,0.01444665,40966.0,40965.0,0.367299]
[1646414220689,0.061066,40968.0,40965.0,0.367299]
[1646414221790,0.061066,40968.0,40967.0,0.367299]
[1646414221988,0.061066,40968.0,40967.0,0.667299]
[1646414223033,0.29693306,40975.0,40968.0,1.35]
[1646414223034,0.06038986,40975.0,40968.0,1.35]
[1646414223237,0.00080267,40976.0,40969.0,0.517299]
[1646414223437,0.00344649,40984.0,40971.0,0.02452]
[1646414223637,0.00344649,40984.0,40973.0,0.02452]
[1646414223832,0.00344649,40984.0,40974.0,0.367299]
[1646414224132,0.00344649,40984.0,40981.0,0.367299]
[1646414224732,0.061041,40982.0,40981.0,0.367299]
[1646414224932,0.32835023,40982.0,40981.0,0.367299]
[1646414225140,0.34604249,40982.0,40981.0,0.366699]
[1646414225332,0.061041,40982.0,40981.0,0.366699]
[1646414226139,0.061041,40982.0,40981.0,0.666699]
[1646414226335,0.00366153,40984.0,40981.0,0.93431375]
[1646414226579,0.00366153,40984.0,40981.0,0.666699]
[1646414226786,0.00366153,40984.0,40981.0,0.366699]
[1646414227081,0.00344649,40984.0,40981.0,0.366699]
[1646414227480,0.12554749,40984.0,40981.0,0.366699]
[1646414227682,0.31255585,40983.0,40981.0,0.366699]
[1646414227881,0.137847,40984.0,40982.0,0.367062]
[1646414228484,0.137847,40984.0,40977.0,0.002]
[1646414228485,0.21469351,40983.0,40977.0,0.002]
[1646414228686,0.21469351,40983.0,40978.0,0.367062]
[1646414228886,0.54336906,40983.0,40978.0,0.367062]
[1646414229688,0.54336906,40983.0,40977.0,0.5]
[1646414229689,0.59358388,40983.0,40977.0,0.5]
[1646414229884,0.06106089,40982.0,40977.0,0.5]
[1646414230085,0.27164109,40980.0,40977.0,0.5]
[1646414230343,0.32164109,40980.0,40977.0,0.5]
[1646414230744,0.135101,40978.0,40977.0,0.5]
[1646414230943,0.06107027,40975.0,40967.0,0.8]
[1646414231143,0.061071,40973.0,40968.0,0.367062]
[1646414231347,0.061071,40973.0,40969.0,0.367062]
[1646414231746,0.061071,40973.0,40972.0,0.367062]
[1646414231944,0.06128589,40973.0,40972.0,0.367062]
[1646414232544,0.06128589,40973.0,40968.0,0.367062]
[1646414232743,0.23676925,40972.0,40968.0,0.367062]
[1646414232946,0.06107243,40972.0,40969.0,0.3]
[1646414233146,0.061068,40972.0,40970.0,0.367062]
[1646414233344,0.061068,40972.0,40970.0,0.6568668]
[1646414236384,0.061068,40972.0,40970.0,0.367062]
[1646414236587,0.12214135,40972.0,40970.0,0.367062]
[1646414236784,0.25828691,40971.0,40970.0,0.367062]
[1646414236987,0.57376856,40971.0,40966.0,0.5]
[1646414237186,0.25528102,40969.0,40966.0,0.5]
[1646414237586,0.25825266,40968.0,40966.0,0.5]
[1646414237827,0.31933734,40968.0,40966.0,0.5]
[1646414238227,0.51839195,40968.0,40966.0,0.5]
[1646414238829,0.0491,40967.0,40966.0,0.867062]
[1646414239429,0.0491,40967.0,40966.0,0.367062]
[1646414239629,0.0491,40967.0,40960.0,0.367062]
[1646414240032,0.22918387,40965.0,40960.0,0.367062]
[1646414240231,0.18376892,40964.0,40961.0,0.367062]
[1646414240431,0.27572682,40963.0,40960.0,0.367062]
[1646414240631,0.27572682,40963.0,40959.0,0.133388]
[1646414240632,0.62482682,40963.0,40959.0,0.133388]
[1646414241034,0.24879331,40961.0,40954.0,0.3668]
[1646414241236,0.0491,40961.0,40952.0,0.29250726]
[1646414241433,0.0491,40961.0,40948.0,0.1202]
[1646414241434,0.27544334,40959.0,40948.0,0.1202]
[1646414241677,0.27544334,40959.0,40948.0,0.62041537]
[1646414241678,0.3102013,40959.0,40948.0,0.62041537]
[1646414242078,0.3102013,40959.0,40948.0,0.12041537]
[1646414242478,0.2627264,40950.0,40949.0,0.26411619]
[1646414242680,0.2627264,40950.0,40949.0,0.63117819]
[1646414243481,0.54159043,40950.0,40948.0,0.00021557]
[1646414243682,0.16803792,40949.0,40948.0,0.00021557]
[1646414243981,0.06111385,40946.0,40938.0,0.367062]
[1646414244383,0.06111385,40946.0,40939.0,0.24657824]
[1646414244680,0.061119,40947.0,40940.0,0.367062]
[1646414244880,0.110219,40947.0,40944.0,0.367062]
[1646414245332,0.061095,40951.0,40950.0,0.2961945]
[1646414245530,0.061095,40951.0,40950.0,0.6632565]
[1646414245738,0.171292,40953.0,40950.0,0.6632565]
[1646414245930,0.171292,40953.0,40951.0,0.367062]
[1646414246133,0.122192,40953.0,40951.0,0.367062]
[1646414246431,0.061089,40955.0,40951.0,0.417062]
[1646414247034,0.061089,40955.0,40954.0,0.17965626]
[1646414247231,0.061089,40955.0,40954.0,0.367062]
[1646414247432,0.061083,40956.0,40954.0,0.367062]
[1646414247631,0.061083,40956.0,40955.0,0.367062]
[1646414247831,0.001,40959.0,40955.0,0.417062]
[1646414248231,0.001,40959.0,40956.0,0.40102224]
[1646414248431,0.001,40959.0,40957.0,0.367062]
[1646414248632,0.001,40959.0,40957.0,0.417062]
[1646414249100,0.061073,40963.0,40957.0,0.417062]
[1646414251605,0.32285901,40963.0,40957.0,0.417062]
[1646414251802,0.01185216,40961.0,40957.0,0.417062]
[1646414252002,0.0145273,40960.0,40957.0,0.417062]
[1646414252207,0.13718801,40960.0,40957.0,0.367062]
[1646414252831,0.13718801,40960.0,40953.0,0.367062]
[1646414252832,0.0737876,40959.0,40953.0,0.367062]
[1646414253032,0.0737876,40959.0,40949.0,0.367062]
[1646414253232,0.01623771,40955.0,40949.0,0.367062]
[1646414253636,0.01623771,40955.0,40949.0,0.417062]
[1646414253833,0.01623771,40955.0,40951.0,0.367062]
[1646414254333,0.01623771,40955.0,40951.0,0.417062]
[1646414254535,0.01100373,40953.0,40951.0,0.417062]
[1646414254738,0.29891782,40953.0,40951.0,0.417062]
[1646414254939,0.01386432,40951.0,40948.0,0.00021478]
[1646414255136,0.01150667,40951.0,40949.0,0.367062]
[1646414255334,0.28791409,40953.0,40949.0,0.367062]
[1646414255534,0.01539202,40951.0,40949.0,0.367062]
[1646414255734,0.01292225,40951.0,40949.0,0.367062]
[1646414257187,0.01292225,40951.0,40945.0,0.367062]
[1646414257388,0.12220874,40952.0,40945.0,0.367062]
[1646414257584,0.122216,40948.0,40945.0,0.417062]
[1646414257784,0.122216,40948.0,40945.0,0.367062]
[1646414258188,0.122216,40948.0,40944.0,0.002]
[1646414258387,0.19249043,40945.0,40944.0,0.002]
[1646414258586,0.19249043,40945.0,40944.0,0.00221472]
[1646414258787,0.45979745,40945.0,40944.0,0.00221472]
[1646414258986,0.68173991,40945.0,40936.0,0.367062]
[1646414259186,0.19249043,40940.0,40937.0,0.367062]
[1646414259387,0.122256,40941.0,40940.0,0.28023751]
[1646414259590,0.06112386,40938.0,40932.0,0.367062]
[1646414259790,0.122256,40941.0,40932.0,1.18391865]
[1646414259989,0.0491,40942.0,40933.0,0.05546862]
[1646414260187,0.0491,40942.0,40934.0,0.367062]
[1646414260436,0.061105,40941.0,40934.0,0.367062]
[1646414260636,0.061105,40941.0,40935.0,0.1]
[1646414260835,0.061105,40941.0,40936.0,0.367062]
[1646414261035,0.061105,40941.0,40936.0,0.41719854]
[1646414261640,0.30588857,40951.0,40936.0,0.41719854]
[1646414261641,0.05,40953.0,40942.0,0.06391278]
[1646414261839,0.00446432,40965.0,40937.0,0.28961254]
[1646414261840,0.05,40962.0,40943.0,0.691582]
[1646414262036,0.05,40962.0,40949.0,0.02452]
[1646414262236,0.4534,40968.0,40950.0,0.417062]
[1646414262436,0.061081,40957.0,40950.0,0.417062]
[1646414262641,0.061081,40957.0,40954.0,0.367062]
[1646414263237,0.061081,40957.0,40949.0,0.05]
[1646414263436,0.061081,40957.0,40943.0,0.45]
[1646414263638,0.361081,40957.0,40944.0,0.367062]
[1646414263938,0.061104,40949.0,40947.0,0.367062]
[1646414264881,0.26847723,40948.0,40947.0,0.367062]
[1646414265480,0.51759812,40948.0,40942.0,0.00021717]
[1646414265683,0.51759812,40948.0,40940.0,0.367062]
[1646414265881,0.51759812,40948.0,40942.0,0.00021717]
[1646414266080,0.061104,40949.0,40942.0,0.00021717]
[1646414266281,0.183349,40947.0,40943.0,0.367062]
[1646414266679,0.05,40946.0,40943.0,0.367062]
[1646414266879,0.061109,40945.0,40943.0,0.417062]
[1646414267080,0.28212099,40944.0,40943.0,0.417062]
[1646414267281,0.28212099,40944.0,40943.0,0.367062]
[1646414268336,0.07570265,40945.0,40942.0,0.367062]
[1646414268636,0.061109,40945.0,40942.0,0.367062]
[1646414269234,0.061109,40945.0,40943.0,0.3]
[1646414269433,0.061097,40948.0,40944.0,0.367062]
[1646414269634,0.061097,40948.0,40946.0,0.60967453]
[1646414269836,0.052,40956.0,40947.0,0.32452]
[1646414270036,0.002,40956.0,40948.0,0.440682]
[1646414270237,0.002,40956.0,40953.0,0.367062]
[1646414270733,0.002,40956.0,40954.0,0.257636]
[1646414270935,0.002,40956.0,40955.0,0.367062]
[1646414271136,0.063084,40956.0,40955.0,0.367062]
[1646414272291,0.063084,40956.0,40955.0,0.667062]
[1646414273094,0.063084,40956.0,40955.0,0.367062]
[1646414273591,0.063084,40956.0,40955.0,0.417062]
[1646414275196,0.002,40956.0,40955.0,0.367062]
[1646414275442,0.002,40956.0,40943.0,0.367062]
[1646414275443,0.01007898,40955.0,40943.0,0.367062]
[1646414275645,0.01575463,40953.0,40943.0,0.367062]
[1646414275842,0.002,40956.0,40943.0,0.367062]
[1646414275843,0.01544237,40952.0,40943.0,0.367062]
[1646414276040,0.01005639,40951.0,40943.0,0.367062]
[1646414276244,0.01242631,40949.0,40947.0,0.367062]
[1646414276441,0.01377545,40948.0,40947.0,0.367062]
[1646414276641,0.01165026,40948.0,40947.0,0.367062]
[1646414276942,0.24577542,40955.0,40947.0,0.367062]
[1646414277244,0.01216961,40953.0,40949.0,0.367062]
[1646414277443,0.002,40956.0,40949.0,0.367062]
[1646414277444,0.01516159,40952.0,40949.0,0.367062]
[1646414278145,0.01516159,40952.0,40949.0,0.67512914]
[1646414278342,0.122197,40951.0,40949.0,0.367062]
[1646414279184,0.122197,40951.0,40949.0,0.417062]
[1646414279587,0.07625359,40952.0,40949.0,0.417062]
[1646414279784,0.061092,40952.0,40949.0,0.417062]
[1646414280183,0.061092,40952.0,40951.0,0.417062]
[1646414280385,0.061092,40952.0,40951.0,0.717062]
[1646414280586,0.001,40954.0,40952.0,0.21579535]
[1646414280789,0.001,40954.0,40953.0,0.89896426]
[1646414280987,0.002,40956.0,40953.0,0.89896426]
[1646414281387,0.002,40956.0,40953.0,0.667062]
[1646414281885,0.002,40956.0,40954.0,0.29087447]
[1646414282085,0.002,40956.0,40955.0,0.367062]
[1646414282287,0.002,40956.0,40955.0,0.417062]
[1646414282486,0.002,40956.0,40955.0,0.717062]
[1646414282932,0.002,40956.0,40955.0,0.417062]
[1646414283228,0.002,40956.0,40955.0,0.717062]
[1646414283438,0.002,40956.0,40955.0,0.417062]
[1646414283630,0.002,40956.0,40955.0,0.717062]
[1646414284029,0.002,40956.0,40955.0,0.417062]
[1646414284228,0.002,40956.0,40955.0,0.71696096]
[1646414284829,0.002,40956.0,40955.0,0.41696096]
[1646414286433,0.002,40956.0,40955.0,0.41196096]
[1646414289486,0.002,40956.0,40945.0,0.3]
[1646414289686,0.002,40956.0,40944.0,0.667062]
[1646414289687,0.061092,40955.0,40944.0,0.667062]
[1646414289886,0.01608491,40953.0,40951.0,0.367062]
[1646414290335,0.11438002,40953.0,40951.0,0.367062]
[1646414291240,0.1,40953.0,40951.0,0.412062]
[1646414292838,0.1,40953.0,40952.0,0.48492838]
[1646414293039,0.1,40953.0,40952.0,0.85199038]
[1646414293342,0.002,40956.0,40953.0,1.62924724]
[1646414293542,0.002,40956.0,40954.0,0.367062]
[1646414293741,0.002,40956.0,40955.0,0.667062]
[1646414293939,0.002,40956.0,40955.0,0.717062]
[1646414296581,0.002,40956.0,40955.0,0.417062]
[1646414298032,0.01327255,40956.0,40955.0,0.417062]
[1646414299232,0.002,40956.0,40955.0,0.417062]
[1646414300840,0.01741764,40956.0,40955.0,0.05]
[1646414301234,0.26505501,40955.0,40954.0,0.367062]
[1646414301436,0.26505501,40955.0,40953.0,0.25]
[1646414301685,0.26505501,40955.0,40953.0,0.2]
[1646414301880,0.25051159,40955.0,40953.0,0.2]
[1646414302081,0.2617108,40955.0,40953.0,0.2]
[1646414302282,0.25051159,40955.0,40953.0,0.2]
[1646414303283,0.25051159,40955.0,40953.0,0.25]
[1646414305635,0.002,40956.0,40953.0,0.245]
[1646414309691,1.15,40955.0,40953.0,0.05]
[1646414309892,1.15,40955.0,40937.0,0.57837567]
[1646414309893,0.061106,40953.0,40941.0,0.3004]
[1646414310093,0.061106,40953.0,40941.0,0.3]
[1646414310294,0.135101,40952.0,40941.0,0.3]
[1646414310490,0.23508708,40944.0,40941.0,0.3]
[1646414310690,0.23508708,40944.0,40938.0,0.50187615]
[1646414310691,0.02049097,40944.0,40938.0,0.50187615]
[1646414310890,0.02049097,40944.0,40942.0,0.23769223]
[1646414311091,0.02049097,40944.0,40943.0,0.367062]
[1646414311292,0.02049097,40944.0,40938.0,0.3]
[1646414311492,0.02049097,40944.0,40930.0,0.18332056]
[1646414311691,0.02049097,40944.0,40932.0,0.4191]
[1646414311892,0.28367811,40941.0,40938.0,0.002]
[1646414312691,0.40592111,40941.0,40938.0,0.002]
[1646414313134,0.40592111,40941.0,40936.0,0.26920426]
[1646414313338,0.40592111,40941.0,40931.0,0.01]
[1646414313835,0.061125,40937.0,40931.0,0.13224234]
[1646414314033,0.135101,40936.0,40934.0,0.06133988]
[1646414314234,0.135101,40936.0,40934.0,0.31824607]
[1646414314638,0.135101,40936.0,40934.0,0.36824607]
[1646414315035,0.15156044,40935.0,40931.0,0.01]
[1646414315336,0.15156044,40935.0,40933.0,0.00022143]
[1646414315337,0.44484645,40934.0,40933.0,0.00022143]
[1646414315534,0.48984645,40934.0,40933.0,0.00022143]
[1646414316135,0.48984645,40934.0,40931.0,0.01]
[1646414316333,0.135101,40933.0,40931.0,0.01022143]
[1646414317184,0.185101,40933.0,40931.0,0.01022143]
[1646414317385,0.185101,40933.0,40931.0,0.01]
[1646414318283,0.135101,40933.0,40931.0,0.01]
[1646414318485,2.05806897,40938.0,40931.0,0.01]
[1646414318684,0.045,40937.0,40931.0,0.01]
[1646414318884,0.045,40936.0,40931.0,0.01]
[1646414319085,0.061139,40934.0,40931.0,0.01]
[1646414319488,0.061139,40934.0,40930.0,0.0002075]
[1646414319489,1.35,40932.0,40930.0,0.0002075]
[1646414319790,0.045,40931.0,40923.0,0.12228791]
[1646414319987,0.22743182,40929.0,40923.0,0.12228791]
[1646414320187,0.0134914,40928.0,40923.0,0.12228791]
[1646414320436,0.061154,40927.0,40919.0,0.31711467]
[1646414321237,0.061153,40925.0,40920.0,0.12229205]
[1646414321636,0.061154,40927.0,40920.0,0.12229205]
[1646414322237,0.122297,40927.0,40920.0,0.12229205]
[1646414322440,0.122297,40927.0,40921.0,0.00022571]
[1646414323436,0.122297,40927.0,40920.0,0.17229205]
[1646414323638,0.122297,40927.0,40922.0,0.00022571]
[1646414324487,0.13664427,40927.0,40922.0,0.00022571]
[1646414324688,0.13664427,40927.0,40921.0,0.12229293]
[1646414324889,0.13664427,40927.0,40922.0,0.00022571]
[1646414325493,0.01697409,40925.0,40922.0,0.00022571]
[1646414325687,0.061152,40923.0,40922.0,0.00022571]
[1646414325888,0.061152,40923.0,40921.0,0.12229293]
[1646414326090,0.061154,40927.0,40922.0,0.3]
[1646414326290,0.01547316,40929.0,40922.0,0.35]
[1646414326494,0.01579451,40935.0,40922.0,0.35]
[1646414327092,0.02037298,40931.0,40922.0,0.35]
[1646414327292,0.02037298,40931.0,40926.0,0.26397673]
[1646414327696,0.02037298,40931.0,40926.0,0.05]
[1646414328135,0.02037298,40931.0,40923.0,0.23338075]
[1646414328338,0.02037298,40931.0,40924.0,0.061132]
[1646414328535,0.02037298,40931.0,40927.0,0.06113926]
[1646414329535,0.02037298,40931.0,40927.0,0.06134641]
[1646414329737,0.08150898,40931.0,40927.0,0.06134641]
[1646414330640,0.08150898,40931.0,40927.0,0.06113926]
[1646414330837,0.08150898,40931.0,40927.0,0.06133956]
[1646414331682,0.31049775,40930.0,40927.0,0.06133956]
[1646414331883,0.31049775,40930.0,40927.0,0.06113926]
[1646414332085,0.31049775,40930.0,40927.0,0.06133956]
[1646414332283,0.31049775,40930.0,40927.0,0.05933956]
[1646414333087,0.31049775,40930.0,40927.0,0.05913926]
[1646414333686,0.08150898,40931.0,40927.0,0.05913926]
[1646414333885,0.08450898,40931.0,40927.0,0.05913926]
[1646414334085,0.10148175,40931.0,40927.0,0.05913926]
[1646414334284,0.10094644,40931.0,40927.0,0.05913926]
[1646414334484,0.10094644,40931.0,40927.0,0.05934015]
[1646414335083,0.09794644,40931.0,40927.0,0.05934015]
[1646414335533,0.09794644,40931.0,40927.0,0.05913926]
[1646414335738,0.09794644,40931.0,40927.0,0.05934015]
[1646414335935,0.31121844,40931.0,40927.0,0.05934015]
[1646414336135,0.09794644,40931.0,40927.0,0.05934015]
[1646414336336,0.08150898,40931.0,40927.0,0.05934015]
[1646414336738,0.08150898,40931.0,40927.0,0.05913926]
[1646414336936,0.08150898,40931.0,40927.0,0.05934009]
[1646414337237,0.14264998,40931.0,40927.0,0.05934009]
[1646414337638,0.0489,40930.0,40927.0,0.05934009]
[1646414337836,0.0489,40930.0,40927.0,0.05913926]
[1646414338037,0.0489,40930.0,40927.0,0.05934009]
[1646414339091,0.0489,40930.0,40927.0,0.05413926]
[1646414340592,0.26786241,40928.0,40927.0,0.05413926]
[1646414340798,0.0489,40930.0,40927.0,0.05413926]
[1646414341593,0.30627564,40928.0,40927.0,0.05413926]
[1646414341795,0.73265709,40928.0,40926.0,0.00020084]
[1646414341994,0.361156,40927.0,40926.0,0.00020084]
[1646414342193,0.410056,40927.0,40926.0,0.00020084]
[1646414342593,0.410056,40927.0,40919.0,0.12230167]
[1646414342835,0.24537055,40926.0,40924.0,0.00020084]
[1646414343035,0.29427055,40926.0,40924.0,0.00020084]
[1646414343441,0.3,40925.0,40924.0,0.00020084]
[1646414343635,0.3489,40925.0,40924.0,0.00020084]
[1646414343837,0.62140551,40925.0,40912.0,0.1211]
[1646414344035,0.01730523,40921.0,40910.0,0.3766]
[1646414344234,0.06323732,40920.0,40910.0,0.1223293]
[1646414344435,0.06323732,40920.0,40910.0,0.0223293]
[1646414344436,0.25722188,40919.0,40910.0,0.0223293]
[1646414344637,0.0489,40918.0,40910.0,0.0223293]
[1646414344836,0.06922493,40918.0,40910.0,0.0223293]
[1646414345036,0.13039293,40918.0,40911.0,0.2715868]
[1646414345235,0.13039293,40918.0,40912.0,0.00020089]
[1646414345939,0.01519141,40915.0,40912.0,0.00020089]
[1646414346138,0.07502205,40914.0,40912.0,0.00020089]
[1646414346336,0.01652816,40913.0,40909.0,0.28020471]
[1646414346585,0.01652816,40913.0,40911.0,0.00020089]
[1646414346987,0.061164,40914.0,40911.0,0.00020089]
[1646414346988,0.01426652,40914.0,40911.0,0.00020089]
[1646414347187,0.01641383,40914.0,40911.0,0.00020089]
[1646414347386,0.061158,40917.0,40910.0,0.06116513]
[1646414347586,0.061158,40917.0,40910.0,0.06136602]
[1646414347987,0.004,40916.0,40910.0,0.06136602]
[1646414348589,0.004,40916.0,40910.0,0.06116513]
[1646414348787,0.004,40916.0,40911.0,0.00020089]
[1646414349185,0.061158,40917.0,40911.0,0.00020089]
[1646414349386,0.061158,40917.0,40916.0,0.31061729]
[1646414349589,0.061158,40917.0,40911.0,0.12251686]
[1646414349888,0.061158,40917.0,40912.0,0.05]
[1646414350088,0.061158,40917.0,40912.0,0.05020089]
[1646414351148,0.061158,40917.0,40912.0,0.05]
[1646414351343,0.061158,40917.0,40912.0,0.05020089]
[1646414351543,0.110058,40917.0,40912.0,0.05020089]
[1646414351844,0.110058,40917.0,40912.0,0.00020089]
[1646414352248,0.110058,40917.0,40911.0,0.06116838]
[1646414352446,0.110058,40917.0,40912.0,0.00020089]
[1646414352844,0.061172,40916.0,40912.0,0.00020089]
[1646414353244,0.110072,40916.0,40912.0,0.00020089]
[1646414353445,0.33697197,40916.0,40910.0,0.25209509]
[1646414353650,0.33697197,40916.0,40912.0,0.00020089]
[1646414353850,0.27579997,40916.0,40912.0,0.00020089]
[1646414354595,0.27579997,40916.0,40911.0,0.06116884]
[1646414354790,0.0489,40916.0,40911.0,0.06116884]
[1646414354990,0.0489,40916.0,40912.0,0.00020089]
[1646414355891,0.27932618,40915.0,40911.0,0.06116884]
[1646414356090,0.27932618,40915.0,40912.0,0.00020089]
[1646414356492,0.061167,40914.0,40912.0,0.00020089]
[1646414356892,0.01560529,40913.0,40912.0,0.00020089]
[1646414357092,0.01560529,40913.0,40911.0,0.06116884]
[1646414357298,0.01560529,40913.0,40911.0,0.06136973]
[1646414357841,0.061167,40914.0,40911.0,0.06136973]
[1646414358240,0.061167,40914.0,40911.0,0.06116884]
[1646414358445,0.01308125,40913.0,40911.0,0.06116884]
[1646414359243,0.05794825,40914.0,40911.0,0.06116884]
[1646414359444,0.01760551,40913.0,40911.0,0.06116884]
[1646414361449,0.11911325,40914.0,40911.0,0.06116884]
[1646414362686,0.13447668,40914.0,40911.0,0.06116884]
[1646414363088,0.11911325,40914.0,40911.0,0.06116884]
[1646414363691,0.13083903,40912.0,40911.0,0.06116884]
[1646414364490,0.05794825,40914.0,40911.0,0.06116884]
[1646414365537,0.05794825,40914.0,40910.0,0.25209509]
[1646414365733,0.05794825,40914.0,40910.0,0.25231119]
[1646414366534,0.05794825,40914.0,40910.0,0.25221119]
[1646414366738,0.24282719,40911.0,40910.0,0.25199509]
[1646414366936,0.05794825,40914.0,40910.0,0.2522027]
[1646414367938,0.05794825,40914.0,40910.0,0.25199509]
[1646414368136,0.05794825,40914.0,40910.0,0.2522027]
[1646414368336,0.05794825,40914.0,40910.0,0.00020761]
[1646414369085,0.05794825,40914.0,40904.0,0.1723365]
[1646414369288,0.061174,40910.0,40904.0,0.1723365]
[1646414369487,0.13681592,40910.0,40906.0,0.32090971]
[1646414369685,0.13681592,40910.0,40906.0,0.37090971]
[1646414370586,0.13681592,40910.0,40906.0,0.37111002]
[1646414371185,0.13681592,40910.0,40906.0,0.05020031]
[1646414371585,0.01403279,40908.0,40904.0,0.1723365]
[1646414371785,0.13681592,40910.0,40906.0,0.00020031]
[1646414371990,0.01433512,40907.0,40906.0,0.00020031]
[1646414372186,0.13681592,40910.0,40906.0,0.00020031]
[1646414372851,0.13681592,40910.0,40906.0,0.00020055]
[1646414373955,0.13681592,40910.0,40905.0,0.3]
[1646414374154,0.122347,40910.0,40906.0,0.0002009]